Cogmind - Beta 9.4 @@@ ROGUE MODE // 2020.01.07 @ 14:00:21 // Winter2019/RPGLIKE Player: FontPeg Result: Destroyed by as-15317 with Assembled Blade Performance ------------- Evolutions (0) 0 Regions Visited (2) 400 Robots Destroyed (3) 15 Value Destroyed (17) 17 Prototype IDs (0) 0 Alien Tech Used (0) 0 Bonus (0) 0 TOTAL SCORE: 432 Bonus ------- None Cogmind --------- Core Integrity 0/600 Matter 300/300 Energy 250/250 System Corruption 0% Temperature Cool (0) Movement Rolling (90) Location -10/Mines Parts ------- > --- POWER (1) -------- Ion Engine > --- PROPULSION (2) --- Wheel Compact Wheel > --- UTILITY (2) ------ Structural Scanner Sensor Array > --- WEAPON (2) ------- (None) > --- INVENTORY (2) ---- Plasma Cutter Plasma Cutter Peak State ------------ > --- POWER ------------ Ion Engine > --- PROPULSION ------- Wheel Compact Wheel > --- UTILITY ---------- Structural Scanner Sensor Array > --- WEAPON ----------- Plasma Cutter Plasma Cutter > --- INVENTORY -------- Light Assault Rifle Heavy Hammer [Rating: 9] Favorites ----------- Power Ion Engine Engine Ion Engine Propulsion Compact Wheel Wheel Compact Wheel Utility Structural Scanner Device Structural Scanner Weapon Plasma Cutter Ballistic Gun Light Assault Rifle Special Weapon Plasma Cutter Impact Weapon Heavy Hammer Build | -11 -10 -10 ------- Run | Scr Mat Min Slots Evolved 3 | 3 . . Power . | . . . Propulsion 1 | 1 . . Utility 1 | 1 . . Weapon 1 | 1 . . Parts Attached 11 | 5 5 1 Power 1 | 1 . . Engine 1 | 1 . . Core . | . . . Reactor . | . . . Propulsion 2 | 2 . . Treads . | . . . Leg . | . . . Wheel 2 | 2 . . Hover . | . . . Flight . | . . . Utility 2 | . 2 . Device 2 | . 2 . Storage . | . . . Processor . | . . . Hackware . | . . . Protection . | . . . Artifact . | . . . Weapon 6 | 2 3 1 Energy Gun . | . . . Energy Cannon . | . . . Ballistic Gun 3 | 2 . 1 Ballistic Cannon . | . . . Launcher . | . . . Special Weapon 2 | . 2 . Impact Weapon 1 | . 1 . Slashing Weapon . | . . . Piercing Weapon . | . . . Special Melee Weapon . | . . . Unidentified Prototypes . | . . . Parts Lost . | . . . Power . | . . . Propulsion . | . . . Utility . | . . . Weapon . | . . . Highest Loss Streak . | . . . Average Slot Usage (%) 95 | . 95 96 Engine 14 | . 14 14 Wheel 28 | . 28 28 Device 25 | . 23 28 Ballistic Gun 5 | . 1 11 Special Weapon 11 | . 22 . Impact Weapon 8 | . 4 13 Naked Turns . | . . . Heaviest Build 11 | 7 11 11 Greatest Support 26 | 26 26 26 Greatest Overweight (x) . | . . . Average Overweight (x) . | . . . Largest Inventory Capacity 2 | 2 2 2 Average Capacity 1 | 1 2 2 Most Carried 2 | 2 2 2 Average Carried 1 | . 1 2 Final Capacity 2 | 2 2 2 Final Carried 2 | 2 2 2 Class Distribution -------------------- 100% | Mutant Dominant Class ---------------- Mutant | -10/Materials Mutant | -10/Mines Resources | -11 -10 -10 ----------- Run | Scr Mat Min Matter Collected 312 | 250 28 34 Remotely . | . . . Salvage Created 95 | . 72 23 Parts 3 | . 2 1 Haulers Intercepted 1 | . 1 . Recyclers Shooed . | . . . Parts Field Recycled . | . . . Retrieved Matter . | . . . Parts Self-Destructed . | . . . Prevented . | . . . Kills | -11 -10 -10 ------- Run | Scr Mat Min Combat Hostiles Destroyed 1 | . . 1 Melee 1 | . . 1 Classes Destroyed 3 | . 2 1 Builder 1 | . 1 . Hauler 1 | . 1 . Swarmer 1 | . . 1 Best Kill Streak 2 | . 2 1 Combat Bots Only 1 | . . 1 Max Kills in Single Turn 1 | . 1 1 Gunslinging . | . . . Exploded . | . . . Melee 1 | . . 1 Uniques/NPCs Destroyed . | . . . Combat | -11 -10 -10 -------- Run | Scr Mat Min Damage Taken 751 | . 22 729 Core 634 | . 22 612 Absorbed by Shields . | . . . Redirected to Core 406 | . . 406 Core Remaining (%) 100 | 100 . . Volleys Fired 5 | . 3 2 Largest 2 | . 2 1 Hottest 40 | . 40 20 Shots Fired 8 | . 6 2 Gun 2 | . . 2 Cannon . | . . . Launcher . | . . . Special 6 | . 6 . Kinetic 2 | . . 2 Thermal 6 | . 6 . Explosive . | . . . Electromagnetic . | . . . Robot Hit Streak 1 | . . 1 Robot Miss Streak 2 | . 2 1 Penetration Max . | . . . Secondary Targets . | . . . Shots Hit Robots 7 | . 3 4 Core Hits 2 | . 1 1 Critical Hits . | . . . Critical Kills . | . . . Critical Parts Destroyed . | . . . Melee Attacks 15 | . 12 3 Impact 15 | . 12 3 Slashing . | . . . Piercing . | . . . Sneak Attacks 3 | . 3 . Combat Hostiles . | . . . Follow-up Attacks . | . . . Damage Inflicted 369 | . 262 107 Guns 8 | . . 8 Cannons . | . . . Explosions . | . . . Melee 361 | . 262 99 Ramming . | . . . Kinetic 8 | . . 8 Thermal . | . . . Explosive . | . . . Electromagnetic . | . . . Impact 361 | . 262 99 Slashing . | . . . Piercing . | . . . Highest Corruption . | . . . Average Corruption . | . . . Corruption Purged . | . . . Overload Shots . | . . . Overflow Damage 78 | . 78 . Projectiles . | . . . Explosions . | . . . Melee 78 | . 78 . Knockbacks 2 | . 1 1 Impact 2 | . 1 1 Kinetic . | . . . Secondary . | . . . Self-Inflicted Damage . | . . . Shots . | . . . Rammed . | . . . Targets Rammed . | . . . Kicked . | . . . Crushed . | . . . Highest Temperature . | . . . Average Temperature . | . . . Received Heat Transfer 92 | . 12 80 Siege Activations . | . . . Robots Corrupted . | . . . Combat Hostiles . | . . . Parts Fried 2 | . 2 . Impact Corruptions 3 | . 3 . Robots Melted . | . . . Combat Hostiles . | . . . Parts Melted . | . . . Heat Transferred . | . . . Parts Sabotaged . | . . . Parts Stolen . | . . . Parts Stripped . | . . . Power Chain Reactions . | . . . Missiles Intercepted . | . . . Alert | -11 -10 -10 ------- Run | Scr Mat Min Peak Influence 41 | . 27 41 Average Influence 17 | . 9 30 Maximum Alert Level . | . . . Low Security (%) 100 | 100 100 100 Level 1 . | . . . Level 2 . | . . . Level 3 . | . . . Level 4 . | . . . Level 5 . | . . . High Security . | . . . Max Security . | . . . Squads Dispatched . | . . . Investigation . | . . . Extermination . | . . . Reinforcement . | . . . Assault . | . . . Garrison . | . . . Intercept . | . . . Construction Impeded . | . . . Haulers Reinforced . | . . . Stealth | -11 -10 -10 --------- Run | Scr Mat Min Distress Signals . | . . . Communications Jammed . | . . . Distress Signals . | . . . Times Spotted 16 | . 2 14 Peak Tracking Total 8 | . 1 8 Tactical Retreats 2 | . . 2 Traps | -11 -10 -10 ------- Run | Scr Mat Min Traps Triggered . | . . . Indirectly . | . . . Trap Hack Attempts . | . . . Triggered . | . . . Disarmed 9 | . 9 . Reprogrammed . | . . . Reused . | . . . Traps Extracted . | . . . Installed . | . . . Triggered . | . . . Machines | -11 -10 -10 ---------- Run | Scr Mat Min Machines Disabled . | . . . Max in Single Turn . | . . . Machines Sabotaged . | . . . Garrisons Compromised . | . . . Overloaded Fab Kills . | . . . Fab Network Shutdowns . | . . . Hacking | -11 -10 -10 --------- Run | Scr Mat Min Machines Accessed 2 | . 1 1 Terminals 2 | . 1 1 Fabricators . | . . . Repair Stations . | . . . Recycling Units . | . . . Scanalyzers . | . . . Garrison Access . | . . . Total Hacks 6 | . 2 4 Successful 5 | . 2 3 Failed 1 | . . 1 Catastrophic . | . . . Database Lockouts . | . . . Manual 3 | . . 3 Terminals 6 | . 2 4 Fabricators . | . . . Repair Stations . | . . . Recycling Units . | . . . Scanalyzers . | . . . Garrison Access . | . . . Terminal Hacks 4 | . 2 2 Branch Access Points 1 | . . 1 Disarm Traps 2 | . 2 . Zone Layout 1 | . . 1 Fabricator Hacks . | . . . Repair Station Hacks . | . . . Recycling Unit Hacks . | . . . Scanalyzer . | . . . Garrison Access Hacks . | . . . Unauthorized Hacks 2 | . . 2 Terminals 1 | . . 1 Track 1 | . . 1 Fabricators . | . . . Repair Stations . | . . . Recycling Units . | . . . Scanalyzers . | . . . Garrison Access . | . . . Data Cores Recovered . | . . . Used . | . . . Hacking Detections 2 | . 1 1 Full Trace Events . | . . . Feedback Events . | . . . Feedback Blocked . | . . . Robot Schematics Acquired . | . . . Robots Built . | . . . Matter . | . . . Time . | . . . Total Robot Build Rating . | . . . Part Schematics Acquired . | . . . Parts Built . | . . . Matter . | . . . Time . | . . . Total Part Build Rating . | . . . Parts Repaired . | . . . Time . | . . . Parts Recycled . | . . . Recycled Matter . | . . . Retrieved Matter . | . . . Retrieved Components . | . . . Parts Scanalyzed . | . . . Part Schematics Acquired . | . . . Parts Damaged . | . . . Bothacking | -11 -10 -10 ------------ Run | Scr Mat Min Used RIF Installer . | . . . Robots Hacked . | . . . Non-combat . | . . . Combat . | . . . Robot Hacks Applied . | . . . Relay Couplers Released . | . . . Robots Rewired . | . . . Allies Hacked . | . . . Hacks Repelled . | . . . Allies | -11 -10 -10 -------- Run | Scr Mat Min Total Allies . | . . . Largest Group . | . . . Highest-Rated Group . | . . . Highest-Rated Ally . | . . . Total Orders . | . . . Ally Attacks . | . . . Total Damage . | . . . Kills . | . . . Allies Corrupted . | . . . Allies Melted . | . . . Intel | -11 -10 -10 ------- Run | Scr Mat Min Robot Analysis Total . | . . . Derelict Logs Recovered . | . . . Drone Launches . | . . . Drone Recoveries . | . . . Exploration | -11 -10 -10 ------------- Run | Scr Mat Min Turns Passed 499 | 53 239 207 Spaces Moved 403 | 48 151 204 Core 1 | 1 . . Treads . | . . . Legs . | . . . Wheels 402 | 47 151 204 Hover . | . . . Flight . | . . . Fastest Speed 50 | 50 90 90 Average Speed 90 | 90 90 90 Slowest Speed 100 | 100 90 90 Overloaded Moves . | . . . Propulsion Burnouts . | . . . Robots Hopped . | . . . Cave-ins Triggered . | . . . Exploration Rate (%) 31 | 4 31 59 Regions Visited 2 Branch Regions 1 Pre-discovered Areas . | . . . Known Exits Taken . | . . . Unknown Exits Taken 2 | 1 1 . Scrap Searched . | . . . Spaces Dug 2 | . 2 . Terrain Destroyed 2 | . 2 . Melee 2 | . 2 . Projectile . | . . . AOE . | . . . Actions | -11 -10 -10 --------- Run | Scr Mat Min Total 489 | 54 216 219 Wait 49 | . 42 7 Move 401 | 47 150 204 Hop . | . . . Pick Up 3 | 2 1 . Fast Attach 9 | 5 4 . Attach . | . . . Detach . | . . . Swap 2 | . 1 1 Drop 3 | . 3 . Fire 5 | . 3 2 Melee 15 | . 12 3 Ram . | . . . Kick . | . . . Crush . | . . . Escape Stasis . | . . . Rewire . | . . . Trap . | . . . Miscellaneous 2 | . . 2 Route ------- -11/Scrapyard -10/Materials -10/Mines (discovered 1 exit: [*Mat]) History --------- Turn | Location | Event 1 | -11/Scrapyard | Upgraded with Propulsion slot (x1) 1 | -11/Scrapyard | Upgraded with Utility slot (x1) 1 | -11/Scrapyard | Upgraded with Weapon slot (x1) 11 | -11/Scrapyard | Discovered new exit (range 15) 54 | -11/Scrapyard | Entered Materials 207 | -10/Materials | Discovered new exit (range 11) 293 | -10/Materials | Entered Mines 294 | -10/Mines | Assembled infested the area 299 | -10/Mines | Assisted by a Guerilla fighting off Assembled 313 | -10/Mines | Discovered new exit (range 11) 314 | -10/Mines | Build established: Mutant 333 | -10/Mines | Core integrity fell below 50% 475 | -10/Mines | Core integrity fell below 20% 500 | -10/Mines | Destroyed by as-15317 with Assembled Blade Last Messages --------------- 00336_ K-01 Serf cleans the Seismic Survey Station. 00348_ Connecting with Terminal... 00348_ Current location identified: Mines >>Layout(Zone) Retrieving Zone 4Q layout... Downloaded map data. >>Trojan(Track) Trojan loaded successfully. Testing... Tracking enabled and active. >>Access(Branch) No branch access points found. 00349_ K-01 Serf cleans the Seismic Survey Station. 00373_ S-10 Pest destroyed. 00381_ K-01 Serf collects debris. 00467_ Lgt. Assault Rifle severed. 00481_ Acquired 2 matter. 00485_ as-69219 knocked back. 00496_ Hvy. Hammer severed. 00499_ Used Protomatter to restore core integrity (+33, depleted) Map ----- +----------------------------------------------------+ | | | | | | | ??????????????????????????????????????????? | | ??????????????????????????????????????????? | | ????????????#######???????????????????????? | | ???????###### ##??????????????????????? | | ??###### #??????????????????????? | | ??# #??????????????????????? | | #?# ### ### ##??????????????????????? | | ### #?##[# ##??###???????????????????????? | | #??# ####?????????????????????????????? | | #??# #????????????????????????????????? | | ####??# #????????????????????????????????? | | ####### #????????????????????????????????? | | ### =*%! #????????????????????????????????? | | #?#%#### #????????????????????????????????? | | ???????# ########???####??????????????????? | | ???????# #??## ##?????????????????? | | ???????######## #?## #####?????????????? | | ??????????????#%#?# ##??#?????????? | | ??????????????# #?# ## #?????????? | | ??????????????# #?# t% % t #?????????? | | ??????????????# #??# [[%%#???????????? | | ??????????????# #??# / == #???????????? | | ??????????????# #### a@[ ##???????????? | | ??????????????# a a #####????????????? | | ??????????????# ### ##????????????????? | | ??????????????# #?## ##?????????????????? | | ??????????????# #??# ###??????????????????? | | ??????????????# #??# #????????????????????? | | ??????????????# ??? ????????????????????? | | ??????????????###?####????????????????????? | | ??????????????????????????????????????????? | | ??????????????????????????????????????????? | | ??????????????????????????????????????????? | | ??????????????????????????????????????????? | | ??????????????????????????????????????????? | | ??????????????????????????????????????????? | | ??????????????????????????????????????????? | | ??????????????????????????????????????????? | | "? #??????????????????????????????????????? | | "" #??????????????????????????????????????? | | "" #??????????????????????????????????????? | | #??????????????????????????????????????? | | "" #??????????????????????????????????????? | | "" #??????????????????????????????????????? | | "" #??????????????????????????????????????? | | ##?????????????????????????????????????? | | #?????????????????????????????????????? | +----------------------------------------------------+ Best States ------------- Heat Dissipation 25 Energy Generation 10 Energy Capacity 250 Matter Stores 300 Matter Capacity 300 Sight Range 16 Robot Scan Range 10 Terrain Scan Density 10 Evasion (%) 42 Offensive Hacking 10 Item Schematics ----------------- None Robot Schematics ------------------ None Fabricated ------------ Nothing Alien Tech Used ----------------- None Achievements -------------- None Challenges ------------ None RPGLIKE | -11 -10 -10 --------- Run | Scr Mat Min Levels Raised . | . . . XP Earned 3670 | 3000 35 635 XP Spent 2850 | 2850 . . Upgrades 7 | 7 . . Propulsion Slot 1 | 1 . . Utility Slot 1 | 1 . . Weapon Slot 1 | 1 . . Inventory Capacity 2 | 2 . . Hack Attack % 2 | 2 . . Protomatter Created . | . . . Integrity Restored 33 | . . 33 Core 33 | . . 33 Protomatter Decayed 71 | . . 71 Game ------ Seed BeamFissionInterpreter Manual? 0 Play Time 00:08:42 Cumulative 48.5 hours Start 2020.01.07 @ 13:53:45 End 2020.01.07 @ 14:00:21 Sessions 1 Manual Loads 0 Difficulty Rogue Special Mode Winter2019/RPGLIKE Game No. 72 Rogue 72 Adventurer 0 Explorer 0 Win Type - Total 0 Types 0/0/0/0/0/0/0 Lore% 26 Gallery% 39 Achievement% 31 Wizard Run 0 Options --------- ASCII 0 Keyboard 0 Movement Mouse Keybinds 0 Fullscreen 1 Font 18/X11 Map View 76x50 Tactical HUD 1 Map Filters NONE Filters NONE Steam 1 RUN: 02193571-1955-4eaf-bcbf-ed7134e94c62